fUST/lending_fUST_20240119
["ID","MTS","AMOUNT","RATE_DAILY","PERIOD"]
[312119732,1705647047377,-450.11453394,0.00033698,3]
[312119733,1705647047387,-343.60346579,0.00033698,3]
[312119734,1705647047396,-2019.68,0.00033698,3]
[312119735,1705647047408,-502.40674425,0.00033698,3]
[312119736,1705647047417,-754.42,0.00033698,3]
[312119737,1705647047427,-441.25551202,0.00033698,3]
[312119738,1705647047436,-167.98155352,0.00033698,3]
[312119739,1705647047445,-500.0,0.00033698,3]
[312119740,1705647047454,-500.0,0.00033698,3]
[312119741,1705647047463,-500.0,0.00033698,3]
[312119742,1705647047472,-1468.24,0.00033698,3]
[312119743,1705647047481,-830.03,0.00033698,3]
[312119744,1705647047490,-506.72043248,0.00033698,3]
[312119745,1705647047499,-500.0,0.00033698,3]
[312119746,1705647047508,-500.0,0.00033698,3]
[312119747,1705647047517,-509.14299081,0.00033698,3]
[312119748,1705647047526,-500.0,0.00033698,3]
[312119749,1705647047535,-916.7,0.00033698,3]
[312119750,1705647047544,-500.0,0.00033698,3]
[312119751,1705647047553,-500.0,0.00033698,3]
[312119752,1705647047562,-546.35,0.00033698,3]
[312119753,1705647047572,-500.0,0.00033698,3]
[312119754,1705647047644,-2693.85,0.00033698,3]
[312119755,1705647047656,-500.0,0.00033698,3]
[312119756,1705647047665,-1145.1,0.00033698,3]
[312119757,1705647047675,-1172.42,0.00033698,3]
[312119758,1705647047685,-500.0,0.00033698,3]
[312119759,1705647047695,-1066.31,0.00033698,3]
[312119760,1705647047704,-500.0,0.00033698,3]
[312119761,1705647047713,-506.64965042,0.00033698,3]
[312119762,1705647047723,-8928.72,0.00033698,3]
[312119763,1705647047734,-13936.93,0.00033698,3]
[312119764,1705647047744,-1497.72,0.00033698,3]
[312119765,1705647047753,-1325.8,0.00033698,3]
[312119766,1705647047763,-500.0,0.00033698,3]
[312119767,1705647047774,-500.0,0.00033698,3]
[312119768,1705647047784,-500.0,0.00033698,3]
[312119769,1705647047795,-792.02,0.00033698,3]
[312119770,1705647047804,-4387.64,0.00033698,3]
[312119771,1705647047813,-500.0,0.00033698,3]
[312119772,1705647047823,-500.0,0.00033698,3]
[312119773,1705647047832,-500.0,0.00033698,3]
[312119774,1705647047842,-500.0,0.00033698,3]
[312119775,1705647047852,-500.0,0.00033698,3]
[312119776,1705647047865,-500.0,0.00033698,3]
[312119777,1705647047879,-612.47,0.00033698,3]
[312119778,1705647047896,-500.0,0.00033698,3]
[312119779,1705647047908,-500.0,0.00033698,3]
[312119780,1705647047919,-2579.58,0.00033698,3]
[312119781,1705647047928,-500.0,0.00033698,3]
[312119782,1705647047937,-504.68063983,0.00033698,3]
[312119783,1705647047946,-500.0,0.00033698,3]
[312119784,1705647047954,-356.98673676,0.00033698,3]
[312119785,1705647047963,-500.0,0.00033698,3]
[312119786,1705647047973,-500.0,0.00033698,3]
[312119787,1705647047982,-554.58,0.00033698,3]
[312119788,1705647047991,-502.6959281,0.00033698,3]
[312119789,1705647048001,-2773.43,0.00033698,3]
[312119790,1705647048010,-500.0,0.00033698,3]
[312119791,1705647048019,-500.0,0.00033698,3]
[312119792,1705647048029,-500.0,0.00033698,3]
[312119793,1705647048038,-500.0,0.00033698,3]
[312119794,1705647048048,-3105.32,0.00033698,3]
[312119795,1705647048058,-500.0,0.00033698,3]
[312119796,1705647048067,-500.0,0.00033698,3]
[312119797,1705647048076,-500.0,0.00033698,3]
[312119798,1705647048086,-500.0,0.00033698,3]
[312119799,1705647048095,-500.0,0.00033698,3]
[312119800,1705647048104,-731.41,0.00033698,3]
[312119801,1705647048114,-500.0,0.00033698,2]
[312119802,1705647048122,-500.0,0.00033698,3]
[312119803,1705647048132,-511.72220333,0.00033698,3]
[312119804,1705647048141,-500.0,0.00033698,3]
[312119805,1705647048150,-220.94293272,0.00033698,3]
[312119806,1705647048161,-500.0,0.00033698,3]
[312119807,1705647048170,-485.51076799,0.00033698,3]
[312119808,1705647048180,-331.265426,0.00033698,2]
[312119809,1705647048189,-331.265426,0.00033698,2]
[312119810,1705647048198,-1000.0,0.00033738,2]
[312119811,1705647048208,-1000.0,0.0003377,2]
[312119812,1705647048217,-1206.23882079,0.00033793,2]
[312119813,1705647048227,-154.12939898,0.00033837,7]
[312119814,1705647048236,-356.0093853,0.00033959,2]
[312119815,1705647048245,-154.98450155,0.00033969,4]
[312119816,1705647048254,-925.13499287,0.00033971,4]
[312119817,1705647048263,-444.61,0.00033972,3]
[312119818,1705647048273,-500.0,0.00033972,3]
[312119819,1705647048282,-500.0,0.00033972,3]
[312119820,1705647048291,-238.94,0.00033972,3]
[312119821,1705647048300,-768.28,0.00033972,3]
[312119822,1705647048309,-500.0,0.00033972,3]
[312119823,1705647048318,-264.40509235,0.00033972,3]
[312119824,1705647048327,-500.0,0.00033972,3]
[312119825,1705647048336,-500.0,0.00033972,3]
[312119826,1705647048346,-503.94559309,0.00033972,3]
[312119827,1705647048354,-500.0,0.00033972,3]
[312119828,1705647048364,-500.0,0.00033972,3]
[312119829,1705647048373,-500.0,0.00033972,3]
[312119830,1705647048382,-500.0,0.00033972,3]
[312119831,1705647048391,-500.0,0.00033972,3]
[312119832,1705647048400,-500.0,0.00033972,3]
[312119833,1705647048410,-280.43904803,0.00033972,3]
[312119834,1705647048419,-500.0,0.00033972,3]
[312119835,1705647048428,-500.0,0.00033972,3]
[312119836,1705647048437,-2019.68,0.00033972,3]
[312119837,1705647048446,-754.42,0.00033972,3]
[312119838,1705647048455,-500.0,0.00033972,3]
[312119839,1705647048464,-500.0,0.00033972,3]
[312119840,1705647048474,-1468.24,0.00033972,3]
[312119841,1705647048483,-830.03,0.00033972,3]
[312119842,1705647048492,-531.8006374,0.00033972,3]
[312119843,1705647048501,-500.0,0.00033972,3]
[312119844,1705647048511,-500.0,0.00033972,3]
[312119845,1705647048520,-916.7,0.00033972,3]
[312119846,1705647048529,-500.0,0.00033972,3]
[312119847,1705647048538,-500.0,0.00033972,3]
[312119848,1705647048547,-546.35,0.00033972,3]
[312119849,1705647048556,-500.0,0.00033972,3]
[312119850,1705647048565,-2693.85,0.00033972,3]
[312119851,1705647048574,-500.0,0.00033972,3]
[312119852,1705647048583,-1145.1,0.00033972,3]
[312119853,1705647048592,-1172.42,0.00033972,3]
[312119854,1705647048601,-558.54840599,0.00033972,3]
[312119855,1705647048610,-1066.31,0.00033972,3]
[312119856,1705647048620,-500.0,0.00033972,3]
[312119857,1705647048629,-8928.72,0.00033972,3]
[312119858,1705647048638,-13936.93,0.00033972,3]
[312119859,1705647048649,-1497.72,0.00033972,3]
[312119860,1705647048659,-1325.8,0.00033972,3]
[312119861,1705647048668,-500.0,0.00033972,3]
[312119862,1705647048676,-500.0,0.00033972,3]
[312119863,1705647048686,-500.0,0.00033972,3]
[312119864,1705647048696,-792.02,0.00033972,3]
[312119865,1705647048705,-4387.64,0.00033972,3]
[312119866,1705647048714,-500.0,0.00033972,3]
[312119867,1705647048724,-454.98786393,0.00033972,3]
[312119868,1705647048733,-500.0,0.00033972,3]
[312119869,1705647048742,-500.0,0.00033972,3]
[312119870,1705647048751,-500.0,0.00033972,3]
[312119871,1705647048760,-500.0,0.00033972,3]
[312119872,1705647048770,-612.47,0.00033972,3]
[312119873,1705647048779,-160.40654187,0.00033972,3]
[312119874,1705647048788,-501.15009695,0.00033972,3]
[312119875,1705647048798,-2579.58,0.00033972,3]
[312119876,1705647048806,-500.0,0.00033972,3]
[312119877,1705647048816,-500.0,0.00033972,3]
[312119878,1705647048826,-500.0,0.00033972,3]
[312119879,1705647048835,-554.58,0.00033972,3]
[312119880,1705647048844,-2773.43,0.00033972,3]
[312119881,1705647048853,-500.0,0.00033972,3]
[312119882,1705647048865,-500.0,0.00033972,3]
[312119883,1705647048874,-500.0,0.00033972,3]
[312119884,1705647048886,-3105.32,0.00033972,3]
[312119885,1705647048895,-500.0,0.00033972,3]
[312119886,1705647048904,-500.0,0.00033972,3]
[312119887,1705647048914,-403.47299399,0.00033972,3]
[312119888,1705647048923,-503.81106822,0.00033972,3]
[312119889,1705647048932,-631.3814974,0.00033972,3]
[312119890,1705647048941,-731.41,0.00033972,3]
[312119891,1705647048950,-506.64434181,0.00033972,3]
[312119892,1705647048961,-506.25030617,0.00033972,3]
[312119893,1705647048970,-151.0,0.00033972,2]
[312119894,1705647048979,-151.0,0.00033972,2]
[312119895,1705647048988,-180.813176,0.00033972,2]
[312119896,1705647048998,-180.813176,0.00033972,2]
[312119897,1705647049008,-150.0,0.000341,6]
[312119898,1705647049017,-1500.0,0.000341,2]
[312119899,1705647049026,-185.762379,0.000342,14]
[312119900,1705647049036,-2000.0,0.000342,14]
[312119901,1705647049045,-2000.0,0.0003421,14]
[312119902,1705647049114,-2000.0,0.0003422,14]
[312119903,1705647049124,-2000.0,0.0003423,14]
[312119904,1705647049133,-2000.0,0.0003424,15]
[312119905,1705647049143,-500.0,0.00034246,3]
[312119906,1705647049153,-500.0,0.00034246,3]
[312119907,1705647049164,-768.28,0.00034246,3]
[312119908,1705647049173,-500.0,0.00034246,3]
[312119909,1705647049182,-500.0,0.00034246,3]
[312119910,1705647049192,-500.0,0.00034246,3]
[312119911,1705647049201,-500.0,0.00034246,3]
[312119912,1705647049211,-292.75,0.00034246,3]
[312119913,1705647049221,-500.0,0.00034246,3]
[312119914,1705647049230,-495.3,0.00034246,3]
[312119915,1705647049241,-500.0,0.00034246,3]
[312119916,1705647049250,-500.0,0.00034246,3]
[312119917,1705647049260,-500.0,0.00034246,3]
[312119918,1705647049270,-2019.68,0.00034246,3]
[312119919,1705647049279,-754.42,0.00034246,3]
[312119920,1705647049288,-500.0,0.00034246,3]
[312119921,1705647049297,-500.0,0.00034246,3]
[312119922,1705647049307,-1468.24,0.00034246,3]
[312119923,1705647049316,-830.03,0.00034246,3]
[312119924,1705647049325,-500.0,0.00034246,3]
[312119925,1705647049335,-916.7,0.00034246,3]
[312119926,1705647049344,-500.0,0.00034246,3]
[312119927,1705647049353,-500.0,0.00034246,3]
[312119928,1705647049363,-546.35,0.00034246,3]
[312119929,1705647049372,-500.0,0.00034246,3]
[312119930,1705647049381,-2693.85,0.00034246,3]
[312119931,1705647049390,-500.0,0.00034246,3]
[312119932,1705647049400,-1145.1,0.00034246,3]
[312119933,1705647049411,-1172.42,0.00034246,3]
[312119934,1705647049420,-1066.31,0.00034246,3]
[312119935,1705647049429,-500.0,0.00034246,3]
[312119936,1705647049439,-8928.72,0.00034246,3]
[312119937,1705647049448,-13936.93,0.00034246,3]
[312119938,1705647049457,-1497.72,0.00034246,3]
[312119939,1705647049466,-1325.8,0.00034246,3]
[312119940,1705647049476,-500.0,0.00034246,3]
[312119941,1705647049486,-500.0,0.00034246,3]
[312119942,1705647049495,-500.0,0.00034246,3]
[312119943,1705647049505,-792.02,0.00034246,3]
[312119944,1705647049514,-4387.64,0.00034246,3]
[312119945,1705647049523,-500.0,0.00034246,3]
[312119946,1705647049532,-500.0,0.00034246,3]
[312119947,1705647049541,-500.0,0.00034246,3]
[312119948,1705647049550,-583.97798925,0.00034246,3]
[312119949,1705647049559,-500.0,0.00034246,3]
[312119950,1705647049568,-612.47,0.00034246,3]
[312119951,1705647049578,-2579.58,0.00034246,3]
[312119952,1705647049587,-500.0,0.00034246,3]
[312119953,1705647049596,-503.50962741,0.00034246,3]
[312119954,1705647049606,-500.0,0.00034246,3]
[312119955,1705647049615,-554.58,0.00034246,3]
[312119956,1705647049624,-2773.43,0.00034246,3]
[312119957,1705647049633,-500.0,0.00034246,3]
[312119958,1705647049643,-500.0,0.00034246,3]
[312119959,1705647049652,-413.26,0.00034246,3]
[312119960,1705647049663,-3105.32,0.00034246,3]
[312119961,1705647049671,-500.0,0.00034246,3]
[312119962,1705647049679,-500.0,0.00034246,3]
[312119963,1705647049688,-731.41,0.00034246,3]
[312119964,1705647049698,-331.265426,0.00034246,2]
[312119965,1705647049708,-331.265426,0.00034246,2]
[312119966,1705647049717,-180.813176,0.00034246,2]
[312119967,1705647049726,-180.813176,0.00034246,2]
[312119968,1705647049735,-172.679815,0.00034247,2]
[312119969,1705647049745,-2000.0,0.0003425,15]
[312119970,1705647049755,-151.0,0.0003425,2]
[312119971,1705647049765,-151.0,0.0003425,2]
[312119972,1705647049774,-2000.0,0.0003426,15]
[312119973,1705647049784,-2000.0,0.0003427,15]
[312119974,1705647049793,-2000.0,0.0003428,15]
[312119975,1705647049802,-2000.0,0.0003429,15]
[312119976,1705647049813,-156.84747797,0.00034293,7]
[312119977,1705647049822,-2000.0,0.000343,15]
[312119978,1705647049831,-2000.0,0.0003431,15]
[312119979,1705647049840,-2000.0,0.0003432,15]
[312119980,1705647049849,-2000.0,0.0003433,15]
[312119981,1705647049859,-157.98,0.00034336,2]
[312119982,1705647049868,-163.0,0.00034336,2]
[312119983,1705647049877,-202.97,0.00034336,2]
[312119984,1705647049890,-2000.0,0.0003434,15]
[312119985,1705647049899,-2000.0,0.0003435,15]
[312119986,1705647049910,-2000.0,0.0003436,15]
[312119987,1705647049919,-2000.0,0.0003437,15]
[312119988,1705647049928,-2000.0,0.0003438,15]
[312119989,1705647049937,-2855.448157,0.0003439,15]
[312119990,1705647049946,-151.0,0.0003449,2]
[312119991,1705647049955,-500.0,0.0003452,3]
[312119992,1705647049965,-500.0,0.0003452,3]
[312119993,1705647049975,-768.28,0.0003452,3]
[312119994,1705647049984,-500.0,0.0003452,3]
[312119995,1705647049994,-500.0,0.0003452,3]
[312119996,1705647050003,-500.0,0.0003452,3]
[312119997,1705647050012,-500.0,0.0003452,3]
[312119998,1705647050021,-231.4,0.0003452,3]
[312119999,1705647050031,-500.0,0.0003452,3]
[312120000,1705647050041,-500.0,0.0003452,3]
[312120001,1705647050050,-500.0,0.0003452,3]
[312120002,1705647050059,-2019.68,0.0003452,3]
[312120003,1705647050068,-754.42,0.0003452,3]
[312120004,1705647050077,-500.0,0.0003452,3]
[312120005,1705647050087,-500.0,0.0003452,3]
[312120006,1705647050097,-1468.24,0.0003452,3]
[312120007,1705647050106,-830.03,0.0003452,3]
[312120008,1705647050116,-500.0,0.0003452,3]
[312120009,1705647050125,-916.7,0.0003452,3]
[312120010,1705647050134,-500.0,0.0003452,3]
[312120011,1705647050144,-500.0,0.0003452,3]
[312120012,1705647050153,-546.35,0.0003452,3]
[312120013,1705647050163,-541.43,0.0003452,3]
[312120014,1705647050172,-2693.85,0.0003452,3]
[312120015,1705647050181,-500.0,0.0003452,3]
[312120016,1705647050190,-1172.42,0.0003452,3]
[312120017,1705647050199,-1145.1,0.0003452,3]
[312120018,1705647050208,-1066.31,0.0003452,3]
[312120019,1705647050217,-500.0,0.0003452,3]
[312120020,1705647050227,-8928.72,0.0003452,3]
[312120021,1705647050236,-13936.93,0.0003452,3]
[312120022,1705647050245,-1497.72,0.0003452,3]
[312120023,1705647050254,-1325.8,0.0003452,3]
[312120024,1705647050264,-500.0,0.0003452,3]
[312120025,1705647050273,-473.05709641,0.0003452,3]
[312120026,1705647050282,-792.02,0.0003452,3]
[312120027,1705647050292,-4387.64,0.0003452,3]
[312120028,1705647050302,-500.0,0.0003452,3]
[312120029,1705647050311,-500.0,0.0003452,3]
[312120030,1705647050320,-500.0,0.0003452,3]
[312120031,1705647050329,-500.0,0.0003452,3]
[312120032,1705647050339,-612.47,0.0003452,3]
[312120033,1705647050348,-2579.58,0.0003452,3]
[312120034,1705647050357,-500.0,0.0003452,3]
[312120035,1705647050366,-500.0,0.0003452,3]
[312120036,1705647050375,-554.58,0.0003452,3]
[312120037,1705647050445,-2773.43,0.0003452,3]
[312120038,1705647050454,-309.81662381,0.0003452,3]
[312120039,1705647050464,-500.0,0.0003452,3]
[312120040,1705647050474,-3105.32,0.0003452,3]
[312120041,1705647050483,-500.0,0.0003452,3]
[312120042,1705647050493,-500.0,0.0003452,3]
[312120043,1705647050502,-731.41,0.0003452,3]
[312120044,1705647050512,-170.0,0.00034521,2]
[312120045,1705647050521,-156.84747797,0.00034536,7]
[312120046,1705647050530,-5000.0,0.00034612,2]
[312120047,1705647050540,-665.96,0.00034637,2]
[312120048,1705647050549,-5000.0,0.0003464,2]
[312120049,1705647050559,-5000.0,0.00034642,2]
[312120050,1705647050569,-154.57833593,0.00034674,7]
[312120051,1705647050579,-180.813176,0.00034716,2]
[312120052,1705647050590,-180.813176,0.00034716,2]
[312120053,1705647050599,-5000.0,0.00034716,7]
[312120054,1705647050609,-5000.0,0.00034735,7]
[312120055,1705647050619,-29680.85254997,0.00034735,4]
[312120056,1705647050628,-151.0,0.00034735,2]
[312120057,1705647050638,-151.0,0.00034735,2]
[312120058,1705647050647,-11180.93844,0.00034764,4]
[312120059,1705647050657,-27914.89286944,0.00034764,4]
[312120060,1705647050667,-331.265426,0.00034764,2]
[312120061,1705647050676,-331.265426,0.00034764,2]
[312120062,1705647050686,-50000.0,0.00034765,4]
[312120063,1705647050697,-26689.64181955,0.00034772,4]
[312120064,1705647050707,-5000.0,0.00034772,7]
[312120065,1705647050718,-180.813176,0.00034772,2]
[312120066,1705647050728,-180.813176,0.00034772,2]
[312120067,1705647050738,-5000.0,0.00034783,7]
[312120068,1705647050748,-331.265426,0.0003479,2]
[312120069,1705647050757,-331.265426,0.0003479,2]
[312120070,1705647050767,-151.32984646,0.00034792,2]
[312120071,1705647050776,-5000.0,0.00034793,7]
[312120072,1705647050786,-151.0,0.00034794,2]
[312120073,1705647050796,-253.58430899,0.00034794,2]
[312120074,1705647050805,-513.52028137,0.00034794,3]
[312120075,1705647050816,-489.71418385,0.00034794,3]
[312120076,1705647050825,-768.28,0.00034794,3]
[312120077,1705647050835,-170.54,0.00034794,3]
[312120078,1705647050845,-573.3083978,0.00034794,3]
[312120079,1705647050855,-500.0,0.00034794,3]
[312120080,1705647050873,-500.0,0.00034794,3]
[312120081,1705647050885,-500.0,0.00034794,3]
[312120082,1705647050895,-500.0,0.00034794,3]
[312120083,1705647050904,-204.46320999,0.00034794,3]
[312120084,1705647050914,-2019.68,0.00034794,3]
[312120085,1705647050924,-754.42,0.00034794,3]
[312120086,1705647050933,-500.0,0.00034794,3]
[312120087,1705647050942,-500.0,0.00034794,3]
[312120088,1705647050951,-1468.24,0.00034794,3]
[312120089,1705647050961,-830.03,0.00034794,3]
[312120090,1705647050971,-500.0,0.00034794,3]
[312120091,1705647050981,-916.7,0.00034794,3]
[312120092,1705647050990,-500.0,0.00034794,3]
[312120093,1705647051000,-500.0,0.00034794,3]
[312120094,1705647051009,-546.35,0.00034794,3]
[312120095,1705647051019,-2693.85,0.00034794,3]
[312120096,1705647051030,-500.0,0.00034794,3]
[312120097,1705647051040,-1172.42,0.00034794,3]
[312120098,1705647051050,-1145.1,0.00034794,3]
[312120099,1705647051060,-1066.31,0.00034794,3]
[312120100,1705647051070,-611.02220201,0.00034794,3]
[312120101,1705647051080,-8928.72,0.00034794,3]
[312120102,1705647051089,-13936.93,0.00034794,3]
[312120103,1705647051099,-1497.72,0.00034794,3]
[312120104,1705647051108,-1325.8,0.00034794,3]
[312120105,1705647051118,-500.0,0.00034794,3]
[312120106,1705647051128,-4387.64,0.00034794,3]
[312120107,1705647051138,-500.0,0.00034794,3]
[312120108,1705647051148,-500.0,0.00034794,3]
[312120109,1705647051158,-500.0,0.00034794,3]
[312120110,1705647051168,-500.0,0.00034794,3]
[312120111,1705647051178,-612.47,0.00034794,3]
[312120112,1705647051188,-2579.58,0.00034794,3]
[312120113,1705647051197,-160.84,0.00034794,3]
[312120114,1705647051208,-500.0,0.00034794,3]
[312120115,1705647051218,-554.58,0.00034794,3]
[312120116,1705647051228,-2773.43,0.00034794,3]
[312120117,1705647051238,-500.0,0.00034794,3]
[312120118,1705647051247,-3105.32,0.00034794,3]
[312120119,1705647051257,-500.0,0.00034794,3]
[312120120,1705647051266,-342.73292793,0.00034794,3]
[312120121,1705647051276,-731.41,0.00034794,3]
[312120122,1705647051286,-180.813176,0.00034799,2]
[312120123,1705647051295,-180.813176,0.00034799,2]
[312120124,1705647051306,-50000.0,0.00034799,5]
[312120125,1705647051315,-50000.0,0.00034803,4]
[312120126,1705647051324,-331.265426,0.00034803,2]
[312120127,1705647051334,-331.265426,0.00034803,2]
[312120128,1705647051343,-151.0,0.00034803,2]
[312120129,1705647051353,-12358.21491608,0.00034811,4]
[312120130,1705647051362,-591.76162003,0.00035,2]
[312120131,1705647051371,-155.59983545,0.00035,4]
[312120132,1705647051381,-2087.49638084,0.00035,4]
[312120133,1705647051390,-11158.91946061,0.00035,4]
[312120134,1705647051400,-653.4821179,0.00035,4]
[312120135,1705647051410,-3119.50448181,0.00035,19]
[312120136,1705647051419,-1098.0,0.00035,5]
[312120137,1705647051428,-19060.79918765,0.00035,3]
[312120138,1705647051437,-3592.36268445,0.00035,2]
[312120139,1705647051446,-19916.85926334,0.00035,2]
[312120140,1705647051456,-802.547157,0.00035,3]
[312120141,1705647051465,-180.813176,0.00035,2]
[312120142,1705647051474,-180.813176,0.00035,2]
[312120143,1705647051484,-48421.44797185,0.00035,2]
[312120144,1705647051493,-331.265426,0.00035068,2]
[312120145,1705647051502,-331.265426,0.00035068,2]
[312120146,1705647051512,-151.0,0.00035068,2]
[312120147,1705647051520,-768.28,0.00035068,3]
[312120148,1705647051530,-500.0,0.00035068,3]
[312120149,1705647051539,-520.83952533,0.00035068,3]
[312120150,1705647051549,-500.0,0.00035068,3]
[312120151,1705647051558,-282.82,0.00035068,3]
[312120152,1705647051568,-2019.68,0.00035068,3]
[312120153,1705647051577,-754.42,0.00035068,3]
[312120154,1705647051586,-500.0,0.00035068,3]
[312120155,1705647051596,-500.0,0.00035068,3]
[312120156,1705647051605,-1468.24,0.00035068,3]
[312120157,1705647051615,-830.03,0.00035068,3]
[312120158,1705647051624,-500.0,0.00035068,3]
[312120159,1705647051633,-916.7,0.00035068,3]
[312120160,1705647051642,-500.0,0.00035068,3]
[312120161,1705647051651,-500.0,0.00035068,3]
[312120162,1705647051716,-546.35,0.00035068,3]
[312120163,1705647051726,-2693.85,0.00035068,3]
[312120164,1705647051735,-500.0,0.00035068,3]
[312120165,1705647051744,-1172.42,0.00035068,3]
[312120166,1705647051753,-1145.1,0.00035068,3]
[312120167,1705647051763,-1066.31,0.00035068,3]
[312120168,1705647051772,-8928.72,0.00035068,3]
[312120169,1705647051782,-13936.93,0.00035068,3]
[312120170,1705647051792,-1497.72,0.00035068,3]
[312120171,1705647051802,-1325.8,0.00035068,3]
[312120172,1705647051812,-500.0,0.00035068,3]
[312120173,1705647051821,-4387.64,0.00035068,3]
[312120174,1705647051831,-500.0,0.00035068,3]
[312120175,1705647051840,-500.0,0.00035068,3]
[312120176,1705647051850,-160.88,0.00035068,3]
[312120177,1705647051861,-500.0,0.00035068,3]
[312120178,1705647051873,-612.47,0.00035068,3]
[312120179,1705647051884,-2579.58,0.00035068,3]
[312120180,1705647051895,-500.0,0.00035068,3]
[312120181,1705647051907,-554.58,0.00035068,3]
[312120182,1705647051921,-2773.43,0.00035068,3]
[312120183,1705647051931,-282.03,0.00035068,3]
[312120184,1705647051943,-3105.32,0.00035068,3]
[312120185,1705647051955,-500.0,0.00035068,3]
[312120186,1705647051966,-731.41,0.00035068,3]
[312120187,1705647051975,-172.679815,0.00035068,2]
[312120188,1705647051985,-167.187099,0.00035068,2]
[312120189,1705647051995,-1500.0,0.000351,2]
[312120190,1705647052005,-154.57833593,0.00035214,7]
[312120191,1705647052014,-768.28,0.00035342,3]
[312120192,1705647052024,-500.0,0.00035342,3]
[312120193,1705647052034,-500.0,0.00035342,3]
[312120194,1705647052043,-2019.68,0.00035342,3]
[312120195,1705647052053,-754.42,0.00035342,3]
[312120196,1705647052061,-427.33355453,0.00035342,3]
[312120197,1705647052071,-500.0,0.00035342,3]
[312120198,1705647052080,-1468.24,0.00035342,3]
[312120199,1705647052089,-830.03,0.00035342,3]
[312120200,1705647052098,-500.0,0.00035342,3]
[312120201,1705647052107,-916.7,0.00035342,3]
[312120202,1705647052117,-500.0,0.00035342,3]
[312120203,1705647052125,-539.27580623,0.00035342,3]
[312120204,1705647052135,-546.35,0.00035342,3]
[312120205,1705647052144,-2693.85,0.00035342,3]
[312120206,1705647052153,-500.0,0.00035342,3]
[312120207,1705647052169,-1172.42,0.00035342,3]
[312120208,1705647052191,-1145.1,0.00035342,3]
[312120209,1705647052201,-1066.31,0.00035342,3]
[312120210,1705647052211,-8928.72,0.00035342,3]
[312120211,1705647052221,-13936.93,0.00035342,3]
[312120212,1705647052231,-1497.72,0.00035342,3]
[312120213,1705647052241,-1325.8,0.00035342,3]
[312120214,1705647052250,-500.0,0.00035342,3]
[312120215,1705647052259,-4387.64,0.00035342,3]
[312120216,1705647052270,-500.0,0.00035342,3]
[312120217,1705647052279,-500.0,0.00035342,3]
[312120218,1705647052289,-500.0,0.00035342,3]
[312120219,1705647052298,-612.47,0.00035342,3]
[312120220,1705647052308,-2579.58,0.00035342,3]
[312120221,1705647052318,-500.0,0.00035342,3]
[312120222,1705647052328,-554.58,0.00035342,3]
[312120223,1705647052338,-2773.43,0.00035342,3]
[312120224,1705647052347,-3105.32,0.00035342,3]
[312120225,1705647052357,-500.0,0.00035342,3]
[312120226,1705647052366,-731.41,0.00035342,3]
[312120227,1705647052376,-154.57833593,0.00035416,7]
[312120228,1705647052385,-154.12939898,0.0003561,7]
[312120229,1705647052395,-151.0,0.00035616,2]
[312120230,1705647052405,-180.813176,0.00035616,2]
[312120231,1705647052418,-180.813186,0.00035616,2]